bitfinex/quotes_ETHUSD_20241123
["timestamp","ask_amount","ask_price","bid_price","bid_amount"]
[1732321348279,0.0516811,3326.0,3325.9,3.83518452]
[1732321348867,0.0516811,3326.0,3325.9,3.86524441]
[1732321349300,0.0516811,3326.0,3325.9,3.87324441]
[1732321351276,0.0516811,3326.0,3325.9,4.62782975]
[1732321359020,0.0516811,3326.0,3325.9,3.83572975]
[1732321360010,0.0516811,3326.0,3325.9,0.008]
[1732321360385,0.0516811,3326.0,3325.9,3.83572975]
[1732321365095,0.0516811,3326.0,3325.9,0.008]
[1732321365616,0.8131811,3326.0,3325.9,0.008]
[1732321366803,0.8131811,3326.0,3325.9,3.53602975]
[1732321368387,0.0516811,3326.0,3325.9,3.53602975]
[1732321369231,0.0516811,3326.0,3325.9,0.008]
[1732321372623,0.0516811,3326.0,3325.9,2.7491302]
[1732321372926,0.0516811,3326.0,3325.9,3.39865153]
[1732321374123,0.0516811,3326.0,3325.9,3.69835153]
[1732321374627,0.0516811,3326.0,3325.9,4.50565153]
[1732321374831,0.0516811,3326.0,3325.9,4.53571211]
[1732321375745,0.0516811,3326.0,3325.9,4.50565153]
[1732321377017,0.0516811,3326.0,3325.9,4.20595153]
[1732321377613,0.0516811,3326.0,3325.9,1.46482133]
[1732321377827,0.0516811,3326.0,3325.9,4.20595153]
[1732321378653,5.0,3326.3,3325.9,4.20595153]
[1732321378804,5.0,3326.3,3326.0,0.03005994]
[1732321379240,9.0301309,3327.3,3326.1,0.8073]
[1732321379427,9.0301309,3327.3,3327.2,2.7411302]
[1732321384814,9.0,3327.3,3326.9,2.7411302]
[1732321385022,9.0275764,3327.3,3326.9,2.7411302]
[1732321386367,9.0275764,3327.3,3327.0,0.7679]
[1732321386659,9.0275764,3327.3,3326.9,2.7411302]
[1732321386973,9.0275764,3327.3,3326.6,2.77118365]
[1732321387453,9.0275764,3327.3,3326.7,0.2997]
[1732321387667,9.0275764,3327.3,3326.6,2.7411302]
[1732321387972,10.01024404,3327.3,3326.6,2.7411302]
[1732321388173,9.0275764,3327.3,3326.6,2.7411302]
[1732321391851,9.0275764,3327.3,3326.3,2.7411302]
[1732321392056,0.7991,3327.2,3326.3,2.7411302]
[1732321393030,0.8266764,3327.2,3326.3,2.7411302]
[1732321393456,1.80934404,3327.2,3326.3,2.7411302]
[1732321393681,0.7937,3327.1,3326.3,2.7411302]
[1732321393971,0.7937,3327.1,3326.0,0.2997]
[1732321393972,0.7937,3327.1,3326.0,2.7411302]
[1732321395381,0.7937,3327.1,3325.9,0.65752133]
[1732321395529,0.9740944,3327.0,3325.9,0.65752133]
[1732321395734,0.7937,3327.0,3325.9,0.65752133]
[1732321396043,0.7937,3327.0,3325.9,0.008]
[1732321396634,0.8037,3327.0,3325.9,0.008]
[1732321397477,0.7937,3327.0,3325.9,0.008]
[1732321399237,1.33053591,3327.0,3325.9,0.008]
[1732321399569,1.33053591,3327.0,3326.0,2.7411302]
[1732321399788,0.7937,3327.0,3326.0,2.7411302]
[1732321400271,0.7937,3327.0,3326.3,2.7411302]
[1732321401372,0.7937,3327.0,3326.3,2.77118992]
[1732321402994,0.0275764,3327.2,3326.7,2.7411302]
[1732321403277,0.3201642,3327.3,3327.2,1.1137]
[1732321403490,0.00758457,3327.6,3327.5,2.7411302]
[1732321403782,0.00758457,3327.6,3327.5,6.88487308]
[1732321403981,0.00758457,3327.6,3327.5,6.8548302]
[1732321404287,0.00758457,3327.6,3327.5,6.8648302]
[1732321404695,0.00758457,3327.6,3327.5,9.5959604]
[1732321404836,0.00758457,3327.6,3327.5,6.8548302]
[1732321406709,0.00758457,3327.6,3327.5,6.5551302]
[1732321408310,0.0296067,3328.6,3327.9,0.01]
[1732321408607,4.0,3329.3,3328.9,0.814]
[1732321408901,4.0,3329.3,3329.1,4.33539925]
[1732321411241,1.72626737,3329.2,3329.0,0.03003111]
[1732321411447,1.72626737,3329.2,3324.6,8.7448786]
[1732321411448,1.72626737,3329.2,3328.3,0.814]
[1732321411736,0.8233067,3329.2,3328.6,3.52139925]
[1732321412458,0.0296067,3329.2,3329.0,3.52139925]
[1732321412777,0.0296067,3329.2,3329.1,0.814]
[1732321415041,0.0296067,3329.2,3329.1,3.814]
[1732321415337,0.0296067,3329.2,3329.1,3.84403109]
[1732321415838,0.0296067,3329.2,3329.1,3.85403109]
[1732321416040,0.0296067,3329.2,3329.1,3.86403109]
[1732321416560,0.0296067,3329.2,3329.1,3.84403109]
[1732321416706,0.0296067,3329.2,3329.1,4.14373109]
[1732321417091,0.0296067,3329.2,3329.1,4.15373109]
[1732321417296,4.0,3329.3,3329.2,0.7579]
[1732321417741,4.0,3329.3,3329.1,11.16762717]
[1732321418136,4.0,3329.3,3329.2,0.03002717]
[1732321418637,4.0,3329.3,3329.2,1.22849517]
[1732321420025,4.0,3329.3,3329.2,1.52819517]
[1732321420502,0.0211608,3329.8,3329.3,0.02]
[1732321420703,0.0211608,3329.8,3329.7,3.52139925]
[1732321420898,0.0211608,3329.8,3329.7,13.11932161]
[1732321421113,0.0211608,3329.8,3329.7,13.08929925]
[1732321421511,4.0,3330.3,3330.2,0.7579]
[1732321421710,4.0,3330.3,3330.2,4.30931958]
[1732321421940,4.0,3330.3,3330.2,4.60901958]
[1732321422243,4.0,3330.3,3330.2,7.60901958]
[1732321422543,4.0,3330.3,3330.2,7.27929925]
[1732321426713,4.0,3330.3,3330.2,16.08929925]
[1732321429538,4.0,3330.3,3330.2,15.33139925]
[1732321429741,4.0,3330.3,3330.2,6.52139925]
[1732321430748,4.0,3330.3,3330.2,2.73367393]
[1732321430929,4.0,3330.3,3330.2,5.73367393]
[1732321431830,4.0,3330.3,3330.2,6.03337393]
[1732321434546,4.0,3330.3,3329.5,0.2997]
[1732321434755,1.6548,3330.2,3329.5,0.32972574]
[1732321434924,0.7548,3330.2,3329.5,0.2997]
[1732321435540,0.7548,3330.2,3329.2,0.2997]
[1732321435778,0.7548,3330.0,3329.2,0.2997]
[1732321436240,0.7548,3330.0,3328.8,0.3297289]
[1732321436752,0.47857163,3330.1,3327.8,1.199025]
[1732321436753,0.7548,3329.5,3327.8,1.199025]
[1732321436955,0.7548,3329.3,3327.9,0.03004151]
[1732321437159,0.47857163,3330.1,3327.9,0.03004151]
[1732321437160,0.0358125,3330.6,3329.3,0.01]
[1732321437382,0.0358125,3330.6,3329.8,2.73367393]
[1732321437531,0.0358125,3330.6,3329.9,0.03002347]
[1732321438824,0.0358125,3330.6,3330.0,0.03002385]
[1732321439031,13.0,3330.3,3330.0,0.03002385]
[1732321439762,13.0,3330.3,3329.9,0.03002387]
[1732321443280,5.7548,3330.4,3329.9,0.03002387]
[1732321443281,3.8193305,3330.4,3330.3,5.68842387]
[1732321443443,3.66734051,3330.4,3330.3,6.48554026]
[1732321443645,3.66734051,3330.4,3330.3,6.45552387]
[1732321444447,3.66734051,3330.4,3330.3,9.45552387]
[1732321445234,3.66734051,3330.4,3330.1,3.52056153]
[1732321445432,3.66734051,3330.4,3330.2,3.03002152]
[1732321445874,3.66734051,3330.4,3330.3,0.7771]
[1732321446364,3.66734051,3330.4,3330.3,9.46552387]
[1732321447077,3.66734051,3330.4,3330.3,9.45552387]
[1732321447284,3.66734051,3330.4,3330.3,9.46552387]
[1732321449337,3.66734051,3330.4,3330.3,9.47552387]
[1732321454611,0.0358125,3332.2,3332.1,0.2003]
[1732321454805,0.0358125,3332.2,3332.1,0.23029942]
[1732321455163,0.0358125,3332.2,3332.1,0.02999942]
[1732321455411,0.0358125,3332.2,3332.0,3.03000199]
[1732321455867,0.0358125,3332.2,3332.1,6.59]
[1732321456064,0.0358125,3332.2,3332.1,6.58]
[1732321456270,0.0358125,3332.2,3332.0,3.0]
[1732321456507,0.0358125,3332.2,3332.0,3.03000534]
[1732321456721,0.7922,3333.2,3332.1,0.2997]
[1732321456722,3.7361125,3332.3,3332.1,0.2997]
[1732321457034,3.7361125,3332.3,3332.2,0.03000358]
[1732321457304,3.7361125,3332.3,3332.1,0.2997]
[1732321458510,5.40192375,3332.3,3332.1,0.2997]
[1732321458710,5.40192375,3332.3,3331.9,0.2997]
[1732321459411,0.7922,3332.1,3331.1,3.52056153]
[1732321459573,0.7922,3332.1,3331.2,0.03001239]
[1732321459778,0.7922,3332.1,3331.2,0.32971239]
[1732321460672,0.7922,3332.1,3331.2,0.2997]
[1732321460866,0.03091627,3332.0,3331.2,0.2997]
[1732321461104,0.7922,3332.0,3330.8,0.2997]
[1732321463430,0.8022,3331.6,3330.0,0.2997]
[1732321463716,0.7922,3331.4,3330.0,0.2997]
[1732321464023,0.7922,3331.4,3329.9,3.55058457]
[1732321464024,0.82311627,3331.3,3329.9,3.52056153]
[1732321464183,0.7922,3331.3,3330.0,0.32972475]
[1732321464688,0.7922,3331.3,3330.3,3.52056153]
[1732321465019,0.7922,3331.3,3330.4,0.03002133]
[1732321470608,0.7922,3331.3,3330.3,3.52056153]
[1732321470935,0.7922,3331.3,3329.9,3.5505812]
[1732321471140,0.82311627,3331.2,3329.9,3.5505812]
[1732321471486,0.82311627,3331.2,3329.9,3.52056153]
[1732321472329,0.7922,3331.2,3330.0,0.03002563]
[1732321472524,0.7922,3331.2,3330.0,0.0300256]
[1732321474343,0.7922,3331.2,3329.9,3.52056153]
[1732321475136,0.7922,3331.2,3330.0,0.03002465]
[1732321476675,0.7922,3331.2,3330.0,0.32972465]
[1732321477551,0.7998,3331.3,3330.0,0.2997]
[1732321477748,0.7998,3331.3,3329.8,0.2997]
[1732321478051,0.7998,3331.3,3329.9,0.03002447]
[1732321478513,0.8098,3331.3,3329.9,0.03002447]
[1732321478714,0.8098,3331.3,3329.9,0.32972447]
[1732321479733,0.8098,3331.3,3329.9,0.03002447]
[1732321479934,0.8098,3331.3,3329.8,0.03002447]
[1732321480312,0.7998,3331.3,3329.8,0.03002447]
[1732321481726,0.7998,3331.1,3329.8,0.03002447]
[1732321481925,0.7998,3331.1,3329.7,0.36566215]
[1732321482442,0.7998,3330.9,3329.7,0.3356358]
[1732321482763,0.83071627,3330.8,3329.7,0.0359358]
[1732321482965,0.7998,3330.6,3329.7,0.0359358]
[1732321483172,0.7998,3330.4,3329.7,0.0359358]
[1732321483352,0.03091627,3330.3,3329.7,0.0359358]
[1732321483531,0.01,3330.7,3329.7,0.0359358]
[1732321483728,0.7998,3330.6,3329.7,0.3356358]
[1732321483938,0.01,3330.3,3329.7,0.0359358]
[1732321484275,0.7998,3330.2,3329.7,0.0359358]
[1732321484572,0.83071627,3330.1,3329.7,0.0359358]
[1732321485038,0.7998,3329.8,3329.7,0.0359358]
[1732321485364,0.83071627,3329.8,3329.7,0.0359358]
[1732321486966,0.83071627,3329.8,3328.8,0.0413157]
[1732321486967,0.7998,3329.4,3328.8,0.0413157]
[1732321487133,0.7998,3329.2,3328.8,0.0413157]
[1732321487329,0.83071627,3329.1,3328.8,0.0413157]
[1732321487564,0.7998,3328.9,3328.8,0.0413157]
[1732321487770,0.83071627,3328.9,3328.8,0.0413157]
[1732321488670,0.7998,3328.9,3328.8,0.0413157]
[1732321488872,0.83071627,3328.9,3328.8,0.0413157]
[1732321491139,0.7998,3328.9,3328.8,0.0413157]
[1732321494144,0.7602,3329.2,3328.8,0.0413157]
[1732321494579,0.7602,3330.1,3328.8,0.0413157]
[1732321494900,0.7602,3330.1,3328.9,0.03003498]
[1732321496447,0.03091627,3331.2,3330.0,3.52367577]
[1732321496654,0.0413157,3332.5,3331.0,4.31147577]
[1732321496850,0.0413157,3332.5,3331.1,0.03001145]
[1732321497155,5.50413157,3332.4,3331.5,3.52367577]
[1732321497357,5.0,3332.4,3331.5,0.03000937]
[1732321497672,5.0,3332.4,3331.4,3.52367577]
[1732321497846,5.0,3332.4,3331.5,0.03000938]
[1732321498051,5.0,3332.4,3331.4,3.52367577]
[1732321498585,0.03091627,3332.3,3331.4,3.52367577]
[1732321498749,5.0,3332.4,3331.4,3.52367577]
[1732321501762,5.0,3332.4,3331.5,0.03001328]
[1732321502789,5.0,3332.4,3331.4,3.52367577]
[1732321503385,0.7602,3332.3,3331.4,3.52367577]
[1732321505155,0.7602,3332.3,3331.4,3.55369149]
[1732321505354,0.7602,3332.3,3331.4,3.52367577]
[1732321505854,0.7602,3332.3,3331.5,0.03001339]
[1732321506501,0.7602,3332.3,3331.8,3.52367577]
[1732321507275,5.0,3332.4,3332.2,3.52367577]
[1732321508201,5.0,3332.4,3332.3,0.7878]
[1732321508555,5.0,3332.4,3332.3,3.7878]
[1732321509261,1.03,3333.0,3332.4,0.7878]
[1732321509605,0.7602,3334.6,3333.0,3.7878]
[1732321509775,0.7602,3334.6,3333.3,6.52367577]
[1732321509976,2.80422517,3333.4,3333.3,7.31147577]
[1732321510183,2.80422517,3333.4,3333.3,13.89147577]
[1732321511702,2.50452517,3333.4,3333.3,13.89147577]
[1732321512606,5.7602,3335.4,3333.3,13.89147577]
[1732321512779,5.7602,3335.4,3334.2,3.52367577]
[1732321512973,5.7602,3335.4,3334.2,10.89147577]
[1732321516514,5.0,3335.4,3334.2,10.89147577]
[1732321516842,5.0,3335.4,3334.9,0.01]
[1732321517131,5.0,3335.4,3335.1,6.52367577]
[1732321517338,5.0,3335.4,3335.1,13.10367577]
[1732321517885,5.0,3335.4,3335.1,13.36547577]
[1732321518126,5.0,3335.4,3335.1,10.36547577]
[1732321518308,5.0,3335.4,3335.2,3.02997556]
[1732321518309,4.0382797,3335.3,3335.2,3.02997556]
[1732321518710,4.0382797,3335.3,3335.2,3.0]
[1732321518919,4.0382797,3335.3,3335.2,3.02997674]
[1732321519085,4.0382797,3335.3,3335.2,3.0]
[1732321519283,4.0382797,3335.3,3335.2,3.02997675]
[1732321519619,4.0382797,3335.3,3335.2,3.0]
[1732321520242,4.0382797,3335.3,3335.2,9.58]
[1732321520402,4.0382797,3335.3,3335.2,6.58]
[1732321521501,3.3208297,3335.3,3335.2,6.58]
[1732321521703,1.8226597,3335.3,3335.2,6.8797]
[1732321521930,1.8226597,3335.3,3334.3,3.82337577]
[1732321522254,1.8226597,3335.3,3334.4,0.02998226]
[1732321524705,1.8226597,3335.3,3334.7,3.82337577]
[1732321524959,1.8226597,3335.3,3335.1,3.52367577]
[1732321525163,1.8226597,3335.3,3335.2,10.2037]
[1732321529526,1.8226597,3335.3,3335.2,9.8797]
[1732321529962,1.8226597,3335.3,3335.2,6.8797]
[1732321531751,1.8226597,3335.3,3335.2,0.2997]
[1732321531959,1.8226597,3335.3,3335.2,3.6237]
[1732321532459,5.8229,3336.4,3335.2,10.23367797]
[1732321532460,5.0,3336.4,3335.2,10.23367797]
[1732321532750,5.0,3336.4,3336.0,3.82337577]
[1732321536142,5.0,3336.4,3336.0,6.82337577]
[1732321536337,0.00305154,3336.1,3336.0,6.82337577]
[1732321536767,0.00305154,3336.1,3336.0,13.73737577]
[1732321536948,0.00305154,3336.1,3336.0,13.72737577]
[1732321538330,0.00305154,3336.1,3335.5,10.10367577]
[1732321538522,0.00305154,3336.1,3335.9,3.84767577]
[1732321538775,0.00305154,3336.1,3336.0,0.02996948]
[1732321538980,0.00305154,3336.1,3336.0,6.60996948]
[1732321539270,0.00305154,3336.1,3336.0,6.8797]
[1732321539441,0.00305154,3336.1,3336.0,7.09461109]
[1732321539622,0.82875154,3336.1,3336.0,0.51461109]
[1732321539823,1.72905669,3336.1,3336.0,0.21491109]
[1732321540437,0.82875154,3336.1,3336.0,0.21491109]
[1732321542275,0.00305154,3336.1,3336.0,5.71838091]
[1732321542573,0.00305154,3336.1,3336.0,5.53343919]
[1732321542782,4.0,3336.3,3336.0,6.04828119]
[1732321542985,4.0,3336.3,3336.1,0.215142]
[1732321543278,4.0,3336.3,3336.2,0.215142]
[1732321543429,4.0,3336.3,3336.2,0.514842]
[1732321543629,4.0,3336.3,3336.2,0.215142]
[1732321544472,4.8257,3336.3,3336.2,0.215142]
[1732321547575,4.0,3336.3,3336.2,0.215142]
[1732321549497,4.0,3336.3,3336.2,2.49463605]
[1732321550243,1.32377552,3336.3,3336.2,2.63346294]
[1732321550540,0.9243159,3336.3,3336.2,2.84875965]
[1732321550763,0.9243159,3336.3,3336.2,2.81879076]
[1732321552212,0.9243159,3336.3,3336.2,5.84875769]
[1732321552855,0.9243159,3336.3,3336.2,5.81879076]
[1732321553110,0.9243159,3336.3,3336.2,5.84875729]
[1732321553832,0.9243159,3336.3,3336.2,5.63346058]
[1732321554032,0.9243159,3336.3,3336.2,5.84871982]
[1732321554727,5.0,3336.4,3336.3,5.82029405]
[1732321554728,4.46659866,3336.4,3336.3,5.82029405]
[1732321554942,0.0413181,3337.0,3336.9,0.2997]
[1732321555119,0.00449479,3337.0,3336.9,6.57918625]
[1732321555315,0.00449479,3337.0,3336.9,6.54922906]
[1732321556726,8.62636458,3337.4,3336.9,6.01842906]
[1732321557031,5.0,3338.5,3337.6,0.5308]
[1732321557231,5.0,3338.5,3337.8,7.06447577]
[1732321557417,5.0,3338.5,3337.8,7.27973501]
[1732321557738,5.0,3338.5,3337.8,7.26973501]
[1732321557942,5.0,3338.5,3337.8,7.05447577]
[1732321558142,5.0,3338.5,3337.8,7.26898973]
[1732321558327,0.04131788,3337.9,3337.8,7.05447577]
[1732321558544,0.04131788,3337.9,3337.8,7.26884812]
[1732321559244,5.0,3338.5,3338.3,3.52367577]
[1732321559412,5.0,3338.5,3338.3,3.73804812]
[1732321559818,5.0,3338.5,3338.3,4.26884812]
[1732321560243,5.0,3338.5,3338.3,7.56854812]
[1732321561729,5.0,3338.5,3338.3,9.33396982]
[1732321561934,5.0,3338.5,3338.3,9.54817482]
[1732321562427,5.9169,3338.5,3338.3,2.49369905]
[1732321563845,5.0,3338.5,3338.3,2.49369905]
[1732321564049,5.0,3338.5,3338.3,6.01737482]
[1732321564450,5.0,3338.5,3338.3,6.01709778]
[1732321564936,5.0,3338.5,3338.3,9.01709778]
[1732321566236,5.0,3338.5,3338.3,5.49342201]
[1732321566586,5.9169,3338.5,3338.3,2.49342201]
[1732321566967,5.0,3338.5,3338.3,6.01709778]
[1732321567151,5.0,3338.5,3338.3,2.49342201]
[1732321568435,5.0,3338.5,3338.3,2.27949405]
[1732321568680,5.0,3338.5,3338.3,2.49326722]
[1732321569840,3.25,3338.4,3338.3,2.49326722]
[1732321572486,4.1669,3338.4,3338.3,2.49355297]
[1732321573782,4.1669,3338.4,3338.3,0.51375892]
[1732321573783,4.16648276,3338.4,3338.3,0.51375892]
[1732321574169,3.24958276,3338.4,3338.3,0.51375892]
[1732321575590,3.24958276,3338.4,3338.3,4.03743469]
[1732321575745,3.24958276,3338.4,3338.3,3.82337577]
[1732321575948,3.24958276,3338.4,3338.3,4.0375416]
[1732321576348,3.24958276,3338.4,3338.3,4.5683416]
[1732321576544,3.24958276,3338.4,3338.3,4.59829128]
[1732321576854,3.24958276,3338.4,3338.3,6.57808533]
[1732321577051,3.24958276,3338.4,3338.3,6.54813565]
[1732321578679,3.24958276,3338.4,3338.3,6.01733565]
[1732321579544,3.24958276,3338.4,3338.3,6.01815548]
[1732321579743,3.24958276,3338.4,3338.3,2.49447971]
[1732321579941,3.24958276,3338.4,3338.3,2.49451629]
[1732321580364,2.94988276,3338.4,3338.3,2.49451629]
[1732321583950,2.94988276,3338.4,3338.3,2.27949405]
[1732321584290,2.94988276,3338.4,3338.3,2.49500272]
[1732321584790,2.94988276,3338.4,3338.3,4.03888444]
[1732321584945,2.94988276,3338.4,3338.3,6.87047849]
[1732321586865,5.0,3338.5,3338.3,6.87047849]
[1732321587068,5.0,3338.5,3338.4,0.51520867]
[1732321587270,0.0266796,3338.6,3338.4,0.51520867]
[1732321587271,0.47,3339.0,3338.9,0.8518]
[1732321587459,0.47,3339.0,3338.9,4.92062626]
[1732321588369,0.47,3339.0,3338.9,4.89068444]
[1732321589167,0.47,3339.0,3338.9,4.03888444]
[1732321589483,0.47,3339.0,3338.9,0.51520867]
[1732321590098,0.47,3339.1,3338.9,0.51520867]
[1732321590301,1.339,3339.1,3339.0,0.51520867]
[1732321591114,1.339,3339.1,3339.0,0.2997]
[1732321591287,1.339,3339.1,3339.0,0.51541463]
[1732321592522,1.8729,3339.1,3339.0,0.51541463]
[1732321593917,1.85688315,3339.1,3339.0,0.51541463]
[1732321594090,1.85688315,3339.1,3339.0,0.2997]
[1732321594425,1.85688315,3339.1,3339.0,0.51538159]
[1732321594635,1.85688315,3339.1,3339.0,0.21568159]
[1732321594933,1.0064,3338.9,3338.5,0.2997]
[1732321595084,1.03731627,3338.9,3338.5,0.2997]
[1732321596179,1.0064,3338.9,3338.5,0.2997]
[1732321596429,1.03731627,3338.9,3338.5,0.2997]
[1732321596735,1.22789794,3338.8,3337.8,0.2997]
[1732321597080,0.44398315,3339.0,3338.1,0.9292]
[1732321597234,1.0064,3338.9,3338.1,0.02994951]
[1732321597412,0.44398315,3339.0,3338.2,1.92311445]
[1732321597615,0.44398315,3339.0,3338.3,0.95914588]
[1732321597788,0.44398315,3339.0,3338.3,1.25884588]
[1732321597987,1.0064,3338.9,3338.3,0.32964588]
[1732321598204,1.0064,3338.9,3338.3,0.2997]
[1732321598540,1.0064,3338.9,3338.3,1.92311445]
[1732321598685,1.0064,3338.9,3337.8,3.0]
[1732321598686,0.03091627,3338.8,3337.9,2.22281445]
[1732321598890,1.0064,3338.9,3337.9,2.22281445]
[1732321599303,0.03091627,3338.8,3337.9,2.22281445]
[1732321599592,1.0064,3338.8,3337.9,2.22281445]
[1732321599798,1.0064,3338.8,3338.0,0.02995526]
[1732321600499,1.0064,3338.8,3338.1,0.2997]
[1732321600695,1.0064,3338.8,3338.2,0.02995014]
[1732321601319,1.0064,3338.8,3338.1,0.32965015]
[1732321601535,1.0064,3338.8,3338.1,0.02995015]
[1732321602440,1.0064,3338.8,3338.0,0.3296507]
[1732321602598,1.0064,3338.8,3338.0,0.2997]
[1732321604029,1.0064,3338.8,3338.0,2.22281445]
[1732321604228,1.0064,3338.6,3338.0,2.22281445]
[1732321604527,1.0064,3338.4,3338.0,2.22281445]
[1732321604962,1.0064,3338.4,3338.0,1.92311445]
[1732321605163,1.0064,3338.2,3337.6,1.92311445]
[1732321606460,1.0064,3338.2,3337.7,0.3296595]
[1732321606752,1.0064,3338.2,3337.6,1.92311445]
[1732321606753,1.0064,3338.2,3337.9,0.2997]
[1732321606944,1.0064,3338.2,3338.1,0.2997]
[1732321607254,1.0064,3338.2,3338.1,0.51253307]
[1732321607615,1.0064,3338.2,3338.1,0.2997]
[1732321607970,1.0064,3338.2,3338.1,0.51254574]
[1732321609156,1.0064,3338.2,3338.1,0.21284574]
[1732321609336,1.0064,3338.2,3337.6,1.92311445]
[1732321609544,1.0064,3338.2,3337.7,0.21286348]
[1732321609739,1.0064,3338.2,3337.8,0.51256348]
[1732321610052,1.0064,3338.2,3338.0,0.2997]
[1732321610253,0.44398315,3339.0,3337.4,1.92311445]
[1732321610254,0.03091627,3338.1,3337.4,1.92311445]
[1732321610554,1.0064,3338.0,3337.5,0.21286507]
[1732321610753,1.0064,3338.0,3337.1,1.92311445]
[1732321610754,1.0064,3338.0,3337.6,0.51256507]
[1732321610926,1.0064,3338.0,3337.7,0.21286507]
[1732321611128,1.0064,3338.0,3337.8,0.21286507]
[1732321611333,1.0064,3338.0,3337.6,0.2997]
[1732321611537,1.0064,3338.0,3337.7,0.21281403]
[1732321611749,1.0064,3338.0,3337.2,2.22281445]
[1732321611932,1.0064,3337.8,3337.3,0.21284213]
[1732321612255,1.0064,3337.8,3337.4,0.21288313]
[1732321612559,1.0064,3337.8,3336.9,1.92311445]
[1732321612766,1.0064,3337.8,3337.0,0.21281682]
[1732321612919,1.0064,3337.8,3337.1,0.21281682]
[1732321613123,1.0064,3337.8,3337.2,0.21281682]
[1732321613429,1.0064,3337.8,3337.3,0.21281682]
[1732321613622,1.0064,3337.8,3337.4,0.21281682]
[1732321613845,1.0064,3337.8,3336.9,1.92311445]
[1732321613846,1.0064,3337.8,3337.5,0.21281682]
[1732321614171,1.0064,3337.8,3337.6,0.21281682]
[1732321614318,1.0064,3337.8,3337.7,0.21281682]
[1732321614729,0.03091627,3338.7,3337.7,0.21281682]
[1732321614730,1.009,3338.7,3337.7,0.21281682]
[1732321615056,0.03091627,3338.6,3337.8,0.21281682]
[1732321615257,0.03091627,3338.6,3337.9,0.21281682]
[1732321615462,0.03091627,3338.6,3337.2,0.32965906]
[1732321615785,0.03091627,3338.6,3337.3,0.21261674]
[1732321615929,0.03091627,3338.6,3337.4,0.21261674]
[1732321616130,0.03091627,3338.6,3337.6,1.0047]
[1732321616373,1.009,3338.5,3337.7,0.21261674]
[1732321616528,1.009,3338.5,3337.8,0.21261674]
[1732321616732,1.009,3338.5,3337.9,0.21261674]
[1732321616932,1.009,3338.5,3338.0,0.21261674]
[1732321617168,1.009,3338.5,3337.2,0.02995906]
[1732321617365,1.009,3338.5,3337.4,0.2997]
[1732321617531,1.009,3338.5,3337.5,0.51231291]
[1732321617735,1.009,3338.5,3337.6,0.21261291]
[1732321618448,1.009,3338.5,3337.5,0.2997]
[1732321618449,1.009,3338.5,3337.7,0.21261291]
[1732321618680,1.009,3338.5,3337.8,0.21261291]
[1732321618826,1.009,3338.5,3337.4,0.2997]
[1732321619031,1.009,3338.5,3337.5,0.51231291]
[1732321619331,1.009,3338.5,3337.7,0.2997]
[1732321619706,1.009,3338.5,3337.9,0.2997]
[1732321620011,1.009,3338.5,3338.0,0.51231291]
[1732321620196,1.009,3338.5,3338.1,0.21261291]
[1732321620509,1.009,3338.5,3338.2,0.21261291]
[1732321620877,1.009,3338.5,3338.3,0.21285321]
[1732321621106,1.009,3338.5,3338.4,0.21285321]
[1732321621575,1.45298315,3338.8,3338.5,0.2997]
[1732321621875,1.45298315,3338.8,3338.6,0.21285321]
[1732321622073,1.45298315,3338.8,3338.7,0.21285321]
[1732321623745,0.44398315,3338.8,3338.7,0.21285321]
[1732321623892,0.44398315,3338.8,3338.7,0.51255321]
[1732321624214,0.44398315,3338.8,3338.7,2.43566766]
[1732321624992,4.0,3339.4,3339.1,0.2997]
[1732321625193,4.46,3339.4,3339.2,3.08334006]
[1732321625436,4.46,3339.4,3339.3,0.21285321]
[1732321626135,4.46,3339.4,3339.3,0.51255321]
[1732321626341,4.46,3339.4,3339.3,0.51187992]
[1732321626839,4.46,3339.4,3339.3,0.21217992]
[1732321627309,5.469,3339.4,3339.3,2.07796677]
[1732321627502,5.469,3339.4,3339.3,1.86578685]
[1732321628337,5.469,3339.4,3339.3,2.0779953]
[1732321628505,4.46,3339.4,3339.3,2.0779953]
[1732321632509,4.46,3339.4,3339.3,3.0826953]
[1732321632734,4.46,3339.4,3339.3,5.8015792]
[1732321633393,4.46,3339.4,3339.3,6.9964832]
[1732321634008,4.46,3339.4,3339.3,7.2961832]
[1732321636790,4.1603,3339.4,3339.3,7.2961832]
[1732321640040,1.83451315,3339.4,3339.3,5.43039635]
[1732321641212,1.83451315,3339.4,3339.3,8.43039635]
[1732321643166,1.83451315,3339.4,3339.3,8.2181879]
[1732321644466,5.46,3339.5,3339.3,10.9370718]
[1732321644674,0.00506622,3339.7,3339.4,0.0299387]
[1732321645466,0.00506622,3339.7,3339.5,1.3043]
[1732321647048,1.0213095,3340.2,3340.0,0.2983]
[1732321647356,1.0213095,3340.2,3340.1,2.6583]
[1732321647875,0.0301095,3340.2,3340.1,2.6583]
[1732321648029,0.0301095,3340.2,3340.1,2.68823671]
[1732321648768,0.0301095,3340.2,3340.1,3.69283671]
[1732321648967,0.0301095,3340.2,3340.1,6.41172061]
[1732321649641,0.0301095,3340.2,3340.1,8.3771839]
[1732321652811,1.64,3340.4,3340.1,6.0171839]
[1732321654016,1.64,3340.4,3340.1,3.0171839]
[1732321655060,0.0301095,3340.9,3340.7,5.7360678]
[1732321655262,0.0301095,3342.2,3340.8,0.8718834]
[1732321655516,0.0301095,3342.2,3341.3,3.0171839]
[1732321656178,4.90301095,3341.4,3340.8,0.5185834]
[1732321656377,1.0246,3341.2,3339.7,2.7188839]
[1732321656577,1.0246,3341.0,3339.3,0.9831]
[1732321656778,0.01,3341.2,3339.3,0.9831]
[1732321656779,1.0246,3340.8,3339.3,0.9831]
[1732321656980,2.19593773,3340.7,3339.3,0.9831]
[1732321657206,1.0246,3340.6,3339.3,0.9831]
[1732321657501,1.0246,3340.6,3339.2,2.7188839]
[1732321657665,1.46294739,3340.7,3339.1,0.0158477]
[1732321657666,1.0246,3340.4,3339.1,0.0158477]
[1732321657861,1.0246,3340.2,3339.1,0.0158477]
[1732321658101,0.0374268,3340.1,3339.1,0.0158477]
[1732321658481,1.0246,3340.2,3339.1,0.0158477]
[1732321665276,1.0246,3340.0,3339.1,0.0158477]
[1732321665521,0.03742868,3339.9,3339.1,0.0158477]
[1732321665676,1.0246,3340.0,3339.1,0.0158477]